Cogmind - Beta 17 @@@ ROGUE MODE // 2026.08.13 @ 21:03:58 Player: Marc Result: Self-destructed Performance ------------- Evolutions (0) 0 Regions Visited (3) 600 Robots Destroyed (0) 0 Value Destroyed (0) 0 Prototype IDs (0) 0 Alien Tech Used (0) 0 Bonus (800) 800 TOTAL SCORE: 1400 Bonus ------- Registered with UFD 300 Met Optimus in HQ 500 Cogmind --------- Core Integrity 14/250 Matter 284/300 Energy 75/100 System Corruption 1% Temperature Cool (0) Movement Walking (120) Location -7/Scraptown Parts ------- > --- POWER (1) -------- (None) > --- PROPULSION (2) --- Aluminum Leg Aluminum Leg > --- UTILITY (2) ------ (None) > --- WEAPON (2) ------- Salvaging Laser Salvaging Laser > --- INVENTORY (5) ---- Light Ion Engine Cesium-ion Thruster Signal Interpreter Makeshift Hacking Suite Remote Datajack Peak State ------------ > --- POWER ------------ Angular Momentum Engine > --- PROPULSION ------- Aluminum Leg Aluminum Leg > --- UTILITY ---------- Small Storage Unit Improved Sensor Array > --- WEAPON ----------- Remote Datajack Scythe > --- INVENTORY -------- Light Ion Engine Light Nuclear Core Signal Interpreter ECM Suite Hacking Suite Makeshift System Shield Assault Rifle [Rating: 19] Favorites ----------- Power Light Nuclear Core Engine Light Ion Engine Power Core Light Nuclear Core Propulsion Aluminum Leg Leg Aluminum Leg Utility Small Storage Unit Device Improved Sensor Array Storage Small Storage Unit Weapon Assault Rifle Energy Gun Salvaging Laser Ballistic Gun Assault Rifle Special Weapon Remote Datajack Slashing Weapon Makeshift Sword Build | -11 -10 -10 -7 ------- Run | Yrd Mat Sub Scr Slots Evolved . | . . . . Power . | . . . . Propulsion . | . . . . Utility . | . . . . Weapon . | . . . . Parts Attached 18 | . 1 . 17 Power 3 | . . . 3 Engine 2 | . . . 2 Core 1 | . . . 1 Reactor . | . . . . Propulsion 4 | . . . 4 Treads . | . . . . Leg 4 | . . . 4 Wheel . | . . . . Hover . | . . . . Flight . | . . . . Utility 4 | . 1 . 3 Device 3 | . 1 . 2 Storage 1 | . . . 1 Processor . | . . . . Hackware . | . . . . Protection . | . . . . Artifact . | . . . . Weapon 7 | . . . 7 Energy Gun 2 | . . . 2 Energy Cannon . | . . . . Ballistic Gun . | . . . . Ballistic Cannon . | . . . . Launcher . | . . . . Special Weapon 3 | . . . 3 Impact Weapon . | . . . . Slashing Weapon 2 | . . . 2 Piercing Weapon . | . . . . Special Melee Weapon . | . . . . Unidentified Prototypes . | . . . . Parts Lost 1 | . . . 1 Power 1 | . . . 1 Propulsion . | . . . . Utility . | . . . . Weapon . | . . . . Highest Loss Streak 1 | . . . 1 To Critical Strikes . | . . . . Average Backups 6 | . 6 7 6 Power 1 | . 1 1 1 Propulsion . | . 4 4 . Utility 3 | . . 1 4 Weapon . | . 1 1 . Tool/Special . | . . . . Unused Backups 15 | . . . 15 Power 2 | . . . 2 Propulsion 5 | . . . 5 Utility 5 | . . . 5 Weapon 3 | . . . 3 Tool/Special . | . . . . Average Slot Usage (%) 94 | . 88 100 95 Engine 4 | . 14 14 2 Core 8 | . . . 10 Leg 27 | . 28 28 27 Device 13 | . 3 14 15 Storage 12 | . 14 14 12 Ballistic Gun 10 | . 28 28 6 Special Weapon 7 | . . . 8 Slashing Weapon 7 | . . . 9 Peak Build Rating 19 | . 7 7 19 Average Rating 13 | . 6 7 15 On Entrance 6 | 6 6 7 7 Avg Prop Armor Cover (%) . | . . . . Naked Turns 23 | . . . 23 Heaviest Build 16 | 12 14 14 16 Greatest Support 38 | 20 20 20 38 Greatest Overweight (x) . | . . . . Average Overweight (x) . | . . . . Largest Inventory Capacity 8 | . 8 8 8 Average Capacity 7 | . 8 8 7 Most Carried 8 | . 8 7 8 Average Carried 6 | . 6 7 6 Final Capacity 8 | 8 8 8 5 Final Carried 7 | 6 7 7 5 Class Distribution -------------------- 65% | Mutant 34% | Derelict-Mutant Dominant Class ---------------- Mutant | -10/Materials Mutant | -10/Subcaves Mutant | -7/Scraptown Resources | -11 -10 -10 -7 ----------- Run | Yrd Mat Sub Scr Matter Collected 389 | 200 . 10 179 Remotely . | . . . . Salvage Created . | . . . . Parts . | . . . . Haulers Intercepted . | . . . . Recyclers Shooed . | . . . . Parts Field Recycled . | . . . . Retrieved Matter . | . . . . Parts Self-Destructed 3 | . . 3 . Prevented . | . . . . Parts Restored . | . . . . Kills | -11 -10 -10 -7 ------- Run | Yrd Mat Sub Scr Combat Hostiles Destroyed . | . . . . Classes Destroyed . | . . . . Best Kill Streak . | . . . . Combat Bots Only . | . . . . Max Kills in Single Turn . | . . . . Gunslinging . | . . . . Exploded . | . . . . Melee . | . . . . Uniques/NPCs Destroyed . | . . . . Combat | -11 -10 -10 -7 -------- Run | Yrd Mat Sub Scr Hostile Shots Fired 38 | . . 2 36 Missed 16 | . . 1 15 Hits 22 | . . 1 21 Projectile 22 | . . 1 21 Critical Strikes 1 | . . . 1 Damage Taken 502 | . . 113 389 Core 236 | . . 32 204 Absorbed by Shields . | . . . . Core Remaining (%) 100 | 100 . . . Volleys Fired 3 | . . . 3 Largest 1 | . . . 1 Hottest 5 | . . . 5 Shots Fired 3 | . . . 3 Gun . | . . . . Cannon . | . . . . Launcher . | . . . . Special 3 | . . . 3 Kinetic . | . . . . Thermal . | . . . . Explosive . | . . . . Electromagnetic . | . . . . Robot Hit Streak . | . . . . Robot Miss Streak . | . . . . Penetration Max . | . . . . Secondary Targets . | . . . . Shots Hit Robots . | . . . . Core Hits . | . . . . Critical Kills . | . . . . Critical Parts Destroyed . | . . . . Critical Strikes . | . . . . Melee Attacks . | . . . . Impact . | . . . . Slashing . | . . . . Piercing . | . . . . Sneak Attacks . | . . . . Combat Hostiles . | . . . . Follow-up Attacks . | . . . . Damage Inflicted . | . . . . Guns . | . . . . Cannons . | . . . . Explosions . | . . . . Melee . | . . . . Ramming . | . . . . Kinetic . | . . . . Thermal . | . . . . Explosive . | . . . . Electromagnetic . | . . . . Impact . | . . . . Slashing . | . . . . Piercing . | . . . . Highest Corruption 1 | . . . 1 Average Corruption 1 | . . . 1 Corruption Purged . | . . . . Corruption Blocked . | . . . . Effects 1 | . . . 1 Matter Fused 1 | . . . 1 Overload Shots . | . . . . Overflow Damage . | . . . . Projectiles . | . . . . Explosions . | . . . . Melee . | . . . . Knockbacks . | . . . . Impact . | . . . . Kinetic . | . . . . Secondary . | . . . . Self-Inflicted Damage . | . . . . Shots . | . . . . Rammed . | . . . . Targets Rammed . | . . . . Kicked . | . . . . Crushed . | . . . . Highest Temperature 47 | . . . 47 Average Temperature 22 | . . . 22 Received Heat Transfer 217 | . . . 217 Siege Activations . | . . . . Martial Activations . | . . . . Shielding Activations . | . . . . Robots Disrupted . | . . . . Combat Hostiles . | . . . . Robots Corrupted . | . . . . Combat Hostiles . | . . . . Parts Fried . | . . . . Impact Corruptions . | . . . . Robots Melted . | . . . . Combat Hostiles . | . . . . Parts Melted . | . . . . Heat Transferred . | . . . . Parts Sabotaged . | . . . . Parts Stolen . | . . . . Parts Stripped . | . . . . Power Chain Reactions . | . . . . Alert | -11 -10 -10 -7 ------- Run | Yrd Mat Sub Scr Maximum Alert Level . | . . . . Low Security (%) 100 | . 100 . . Level 1 . | . . . . Level 2 . | . . . . Level 3 . | . . . . Level 4 . | . . . . Level 5 . | . . . . High Security . | . . . . Max Security . | . . . . Peak Influence 30 | . 30 . . Initial . | . . . . Average 5 | . 5 . . Influence Increases 56 | . 56 . . Successful Hack 26 | . 26 . . Lose Combat Pursuer 30 | . 30 . . Influence Decreases 56 | . 56 . . Time Decay 56 | . 56 . . Squads Dispatched . | . . . . Investigation . | . . . . Extermination . | . . . . Reinforcement . | . . . . Assault . | . . . . Garrison . | . . . . Intercept . | . . . . Searches Triggered . | . . . . Construction Impeded . | . . . . Haulers Reinforced . | . . . . Active Scanning Responses . | . . . . Cargo Convoy Interrupts . | . . . . Stealth | -11 -10 -10 -7 --------- Run | Yrd Mat Sub Scr Distress Signals . | . . . . Communications Jammed . | . . . . Distress Signals . | . . . . Times Spotted 29 | . 4 1 24 Peak Tracking Total 10 | . 3 1 10 Tactical Retreats 3 | . 2 . 1 ECM-based Alert Blocks 2 | . 2 . . Traps | -11 -10 -10 -7 ------- Run | Yrd Mat Sub Scr Traps Triggered 2 | . . 2 . Indirectly . | . . . . Trap Hack Attempts . | . . . . Triggered . | . . . . Disarmed . | . . . . Reprogrammed . | . . . . Reused . | . . . . Traps Extracted . | . . . . Installed . | . . . . Triggered . | . . . . Machines | -11 -10 -10 -7 ---------- Run | Yrd Mat Sub Scr Machines Disabled . | . . . . Max in Single Turn . | . . . . Machines Repaired . | . . . . Machines Dismantled . | . . . . Machines Sabotaged . | . . . . Overloaded Fab Kills . | . . . . Hacking | -11 -10 -10 -7 --------- Run | Yrd Mat Sub Scr Machines Accessed 10 | . 2 . 8 Terminals 2 | . 2 . . Fabricators . | . . . . Repair Stations . | . . . . Recycling Units . | . . . . Scanalyzers . | . . . . Garrison Access . | . . . . Total Hacks 67 | . 6 . 61 Successful 65 | . 4 . 61 Failed 2 | . 2 . . Catastrophic . | . . . . Database Lockouts . | . . . . Manual 6 | . 6 . . Terminals 6 | . 6 . . Fabricators . | . . . . Repair Stations . | . . . . Recycling Units . | . . . . Scanalyzers . | . . . . Garrison Access . | . . . . Terminal Hacks 61 | . . . 61 Record 56 | . . . 56 Robot Analysis 5 | . . . 5 Fabricator Hacks . | . . . . Repair Station Hacks . | . . . . Recycling Unit Hacks . | . . . . Scanalyzer . | . . . . Garrison Access Hacks . | . . . . Unauthorized Hacks 4 | . 4 . . Terminals 4 | . 4 . . Track 2 | . 2 . . Botnet 2 | . 2 . . Fabricators . | . . . . Repair Stations . | . . . . Recycling Units . | . . . . Scanalyzers . | . . . . Garrison Access . | . . . . Data Cores Recovered . | . . . . Used . | . . . . Hacking Detections 2 | . 2 . . Full Trace Events . | . . . . Feedback Events . | . . . . Feedback Blocked . | . . . . Robot Schematics Acquired . | . . . . Robots Built . | . . . . Authchips . | . . . . Time . | . . . . Total Robot Build Rating . | . . . . Part Schematics Acquired . | . . . . Parts Built . | . . . . Authchips . | . . . . Time . | . . . . Total Part Build Rating . | . . . . Part Studies Acquired . | . . . . Parts Repaired . | . . . . Time . | . . . . Parts Recycled . | . . . . Recycled Matter . | . . . . Retrieved Matter . | . . . . Retrieved Components . | . . . . Parts Scanalyzed . | . . . . Part Schematics Acquired . | . . . . Parts Damaged . | . . . . Bothacking | -11 -10 -10 -7 ------------ Run | Yrd Mat Sub Scr Used RIF Installer . | . . . . Robots Hacked . | . . . . Non-combat . | . . . . Combat . | . . . . Robot Hacks Applied . | . . . . Relay Couplers Released . | . . . . Fabnet Peak Effective % . | . . . . Robots Rewired . | . . . . Allies Hacked . | . . . . Hacks Repelled . | . . . . Allies | -11 -10 -10 -7 -------- Run | Yrd Mat Sub Scr Total Allies . | . . . . Largest Group . | . . . . Highest-Rated Group . | . . . . Highest-Rated Ally . | . . . . Total Orders . | . . . . Ally Attacks . | . . . . Total Damage . | . . . . Kills . | . . . . Allies Corrupted . | . . . . Allies Melted 6 | . . . 6 Intel | -11 -10 -10 -7 ------- Run | Yrd Mat Sub Scr Active Infowar (turns) 2041 | . 68 98 1875 Sensors 1553 | . . . 1553 ECM 706 | . 68 98 540 Robot Analysis Total 5 | . . . 5 Derelict Logs Recovered . | . . . . Drone Launches . | . . . . Drone Recoveries . | . . . . Exploration | -11 -10 -10 -7 ------------- Run | Yrd Mat Sub Scr Turns Passed 2325 | . 301 98 1926 Spaces Moved 1861 | 1 216 73 1571 Core 34 | . . . 34 Treads . | . . . . Legs 1827 | 1 216 73 1537 Wheels . | . . . . Hover . | . . . . Flight . | . . . . Fastest Speed 50 | 120 120 120 50 Average Speed 118 | 120 120 120 117 Slowest Speed 120 | 120 120 120 120 Overloaded Moves . | . . . . Propulsion Burnouts . | . . . . Robots Hopped . | . . . . Potential Cave-ins . | . . . . Cave-ins Triggered . | . . . . Exploration Rate (%) 28 | 2 23 7 83 Regions Visited 3 Branch Regions 2 Pre-discovered Areas 1 | . . . 1 Known Exits Taken . | . . . . Unknown Exits Taken 3 | 1 1 1 . Scrap Searched 6 | . . . 6 Spaces Dug . | . . . . Terrain Destroyed . | . . . . Melee . | . . . . Projectile . | . . . . AOE . | . . . . Terrain Rammed . | . . . . Walls Destroyed . | . . . . Machines Disabled . | . . . . Actions | -11 -10 -10 -7 --------- Run | Yrd Mat Sub Scr Total 1984 | . 258 80 1646 Wait 67 | . 40 8 19 Move 1858 | . 215 72 1571 Hop . | . . . . Pick Up 17 | . 2 . 15 Fast Attach 5 | . . . 5 Attach 1 | . 1 . . Detach . | . . . . Swap 14 | . . . 14 Drop 19 | . . . 19 Fire 3 | . . . 3 Melee . | . . . . Ram . | . . . . Kick . | . . . . Crush . | . . . . Escape Stasis . | . . . . Rewire . | . . . . Trap . | . . . . Miscellaneous . | . . . . Route ------- -11/Scrapyard -10/Materials -10/Subcaves -7/Scraptown (discovered 2 exits: [*Fac x2]) History --------- Turn | Location | Event 1 | -11/Scrapyard | Discovered new exit (range 0) 1 | -11/Scrapyard | Entered Materials 242 | -10/Materials | Discovered new exit (range 8) 302 | -10/Materials | Entered Subcaves 303 | -10/Subcaves | Approached by a straggling Scientist 312 | -10/Subcaves | Build established: Mutant 376 | -10/Subcaves | Scientist uncovered a shortcut to Scraptown 400 | -10/Subcaves | Entered Scraptown 472 | -7/Scraptown | Heard Great Nut preacher, LISTEN AND RECITE! 543 | -7/Scraptown | Learned location of Extension (-4) 594 | -7/Scraptown | Visited Assassins FH 665 | -7/Scraptown | Visited UFD Registry 665 | -7/Scraptown | Registered with UFD as "Bladespreader" 709 | -7/Scraptown | Visited IN-MT5's Study 742 | -7/Scraptown | Visited Shadow of the Wyrm 771 | -7/Scraptown | Visited Spacefarers 1103 | -7/Scraptown | Discovered new exit (range 5) 1227 | -7/Scraptown | Visited Cyclists 1251 | -7/Scraptown | Entered Cyclist Reading Room 1464 | -7/Scraptown | Build established: Derelict-Mutant 1604 | -7/Scraptown | Visited Chapter 10 1646 | -7/Scraptown | Visited Derelict Rescue Squad 1723 | -7/Scraptown | Visited Observation Area 1773 | -7/Scraptown | Visited Curators Association 1872 | -7/Scraptown | Discovered new exit (range 3) 1911 | -7/Scraptown | Visited DA-N13 Charitable Foundation 1931 | -7/Scraptown | Found DCF Scrap (29 items) 1989 | -7/Scraptown | Visited Research Penetration Think Tank 2044 | -7/Scraptown | Met Optimus 2044 | -7/Scraptown | Accepted into 0bPrime 2163 | -7/Scraptown | Visited Analyses Database 2190 | -7/Scraptown | Civil war broke out across Scraptown 2242 | -7/Scraptown | Core integrity fell below 50% 2255 | -7/Scraptown | Build established: Mutant 2257 | -7/Scraptown | Core integrity fell below 20% 2276 | -7/Scraptown | Released all parts (5) 2281 | -7/Scraptown | Optimus destroyed in the chaos of civil war 2326 | -7/Scraptown | Self-destructed Last Messages --------------- 02281_ ANNOUNCEMENT: The traitor Optimus has been dealt with. Put down any remaining collaborators. 02282_ OF-O44(E) cannibalizes Lgt. Ion Engine to repair Imp. Deuterium Engine. 02283_ System corrupted: Matter fused (-5). 02284_ Acquired 5 matter. 02299_ Acquired Aluminum Leg. 02300_ P1-8ZT(g) destroyed. 02301_ 2O-SNH(j) cannibalizes VSS Leg to repair Ovr. Titanium Leg. 02302_ Acquired Aluminum Leg. 02303_ 11-GQY(j) heat spikes uncontrollably. 02303_ 2O-SNH(j) destroyed. 02305_ Acquired Salvaging Laser. 02306_ Acquired 24 matter. 02308_ Acquired Salvaging Laser. 02316_ 03-31P(j) destroyed. 02317_ 8F-B7M(j): "Don't throw away your lives for a pipe dream!" 02320_ 8F-B7M(j) cannibalizes Lgt. Deuterium Engine to repair Lgt. Deuterium Engine. 02325_ 8F-B7M(j) heat damages Lgt. Deuterium Engine. Map ----- +----------------------------------------------------+ | ??#" & "##" "???" "## #" "#??????????? | | ??#"" ""##" """"" "## ##"" ""##??????????? | | ??# ##" "## ##!" "!#???????????? | | ??# ##"" ## ##"" ""#???????????? | | ??# ## ## #" "#??????????? | | ??#### ########### ##### ## ##########??????????? | | ###### ####""##### ##### ## ##??????????????????? | | """""" "" " !""""" "" "#########??????????? | | * =%%![[ "##=![**=#??????????? | | = [%= =%!%! ##*|[%=*#??????????? | | / ! ![==[ = ##!%[[/*#??????????? | | %! = = [!%*##=*[!###??????????? | | !% =%%*=!!=%!*!!###??????????? | | """""""""""""""""""""""" !!!%"##/=[!! #??????????? | | """""""""""""""""""""""" !!!"## ! % #??????????? | | #### ################" *=*"## ! #??????????? | | ##????????#""= ==%"##########?????????? | | X"#????????#""=p!=!"## " """"#?????????? | | "" "" ##????????#""%!=*="## ""#?????????? | | "" "" X"#???######""/j[%="## "#?????????? | | " " ######;;# #""%%!=!!## ""#?????????? | | "" !%!=%=!*! ""#?????????? | | "" % [= j=%[*![ "## ""#?????????? | | " " !#######"# ;"[!!!= "## """"""#?????????? | | "" "" ""#????#####""!!=! ##"""""""#?????????? | | "" "" ##????????#""%@!! "##########?????????? | | X"#????????#""*=[ "#??????????????????? | | ##????????#""!! "#??????????????????? | | #### ######???????###""Ej [=!#########??????????? | | ?""""""????????????" !%"## """"#??????????? | | """"""""????????""" ! =%== """"#??????????? | | ?? !%[![%/!"## " "#??????????? | | ?? % ![= "## ""#??????????? | | ? =%=[ ! "## "#??????????? | | [= !=[==## X"#??????????? | | ?? ! !*=/%!# " "#??????????? | | """"""""????""""""""% """""%%=## """"#??????????? | | ##????????????######j;#####!!!#########??????????? | | ?????????????????? j????#*[ #??????????????????? | | ????????????????? ??????#[ #??????????????????? | | ????????????????? ??????# #??????????????????? | | ????????????????""????????# #??????????????????? | | ??????????????????????????? #??????????????????? | | ??????????????????????????? #??????????????????? | | ??????????????????????????? ??????????????????? | | ???????????????????????????? ??????????????????? | | ???????????????????????????? ????????????????????? | | ?????????????????????????????????????????????????? | | ?????????????????????????????????????????????????? | | ?????????????????????????????????????????????????? | +----------------------------------------------------+ Best States ------------- Heat Dissipation 25 Energy Generation 14 Energy Capacity 160 Matter Stores 300 Matter Capacity 300 Sight Range 16 Robot Scan Range 15 Terrain Scan Density 10 ECM Strength 1 Evasion (%) 55 Item Schematics ----------------- None Robot Schematics ------------------ None Fabricated ------------ Nothing Repaired ---------- Nothing Studied --------- None Alien Tech Used ----------------- None Achievements -------------- Armchair Analyst Bob, First Of His Name Civilization 2243 Link The Feds Challenges ------------ None Game ------ Seed ThermalZeronetHumpback Manual? 0 Play Time 00:42:30 Cumulative 19.9 hours Start 2026.08.13 @ 19:35:22 End 2026.08.13 @ 21:03:58 Sessions 1 Manual Loads 0 Difficulty Rogue Special Mode None Game No. 61 Rogue 54 Adventurer 7 Explorer 0 Win Type - Total 0 Types 0/0/0/0/0/0/0/0/0/0 Lore% 20 Gallery% 22 Achievement% 18 Wizard Run 0 Options --------- Layout 0 ASCII 0 Keyboard 0 Movement Mouse Keybinds 0 Fullscreen 1 Font 18/SmallcapsGlow Map View 38x25 Zoom Use 95% Tactical HUD 1 Map Filters NONE Filters NONE Steam 1 RUN: 14efc6fa-f107-4e25-86f2-dc0179a2f3e7